bitfinex/quotes_SOLUSD_20260304
["timestamp","ask_amount","ask_price","bid_price","bid_amount"]
[1772656339866,1.39147215,93.193,93.141,1.44289859]
[1772656340073,1.39147215,93.185,93.141,1.44289859]
[1772656340273,0.28432314,93.18,93.141,1.44289859]
[1772656341370,0.28432314,93.189,93.141,1.44289859]
[1772656342268,0.28432314,93.198,93.141,1.44289859]
[1772656342464,1.39147215,93.215,93.142,1.51447644]
[1772656342663,5.58081196,93.238,93.16,1.51447644]
[1772656342883,5.58081196,93.238,93.144,3.69383402]
[1772656342884,4.60883208,93.222,93.148,3.69383402]
[1772656343084,4.60883208,93.222,93.145,5.10909883]
[1772656343085,1.39147215,93.244,93.149,0.28432314]
[1772656343277,1.39147215,93.244,93.159,0.28432314]
[1772656343464,1.39147215,93.244,93.159,0.14216157]
[1772656343864,1.54238658,93.285,93.159,0.14216157]
[1772656344064,1.54238658,93.282,93.16,1.07342206]
[1772656344261,1.54238658,93.282,93.177,0.28432314]
[1772656344785,3.4227761,93.298,93.177,0.28432314]
[1772656344786,1.54238658,93.276,93.177,0.28432314]
[1772656345086,1.54238658,93.268,93.177,0.28432314]
[1772656345286,1.54238658,93.268,93.182,0.28432314]
[1772656345489,1.54238658,93.297,93.182,0.28432314]
[1772656345873,0.28432314,93.294,93.183,0.02417402]
[1772656346073,1.54238658,93.285,93.183,0.02417402]
[1772656346470,1.54238658,93.271,93.183,0.02417402]
[1772656346670,1.54238658,93.265,93.183,0.02417402]
[1772656346986,1.54238658,93.297,93.199,0.0362525]
[1772656347298,1.54238658,93.291,93.204,0.0362525]
[1772656347692,1.54238658,93.285,93.204,0.0362525]
[1772656348584,0.14216157,93.276,93.204,0.0362525]
[1772656348883,1.54238658,93.275,93.204,0.0362525]
[1772656349400,1.54238658,93.275,93.206,0.0480873]
[1772656349870,1.54238658,93.265,93.206,0.0480873]
[1772656355687,1.54238658,93.297,93.208,0.08005218]
[1772656356074,1.82670972,93.294,93.208,0.08005218]
[1772656356492,1.68454815,93.294,93.208,0.08005218]
[1772656356785,0.28432314,93.291,93.21,0.08341945]
[1772656356978,1.54238658,93.286,93.21,0.08341945]
[1772656357775,1.54238658,93.286,93.211,0.08881386]
[1772656359877,1.54238658,93.286,93.21,37.54961913]
[1772656359878,1.54238658,93.286,93.214,0.10465144]
[1772656360079,1.54238658,93.297,93.221,0.10465144]
[1772656360299,1.54238658,93.297,93.218,3.69383402]
[1772656360300,1.54238658,93.297,93.23,0.10465144]
[1772656360601,1.54238658,93.355,93.23,0.10465144]
[1772656360783,1.54238658,93.344,93.23,0.10465144]
[1772656361084,5.5708164,93.356,93.23,0.10465144]
[1772656361085,1.54238658,93.335,93.23,0.10465144]
[1772656361290,0.28432314,93.33,93.23,0.10465144]
[1772656361485,0.28432314,93.314,93.23,0.10465144]
[1772656361688,1.54238658,93.305,93.23,0.10465144]
[1772656361870,1.54238658,93.305,93.234,0.11487895]
[1772656363767,0.28432314,93.3,93.234,0.11487895]
[1772656363993,1.54238658,93.295,93.234,0.11487895]
[1772656366184,1.54238658,93.275,93.216,0.13267226]
[1772656366389,1.54238658,93.271,93.216,0.13267226]
[1772656366577,3.69383402,93.309,93.216,0.13267226]
[1772656366578,1.54238658,93.265,93.216,0.13267226]
[1772656375202,1.54238658,93.273,93.216,0.13267226]
[1772656376808,1.54238658,93.265,93.216,0.13267226]
[1772656381508,1.54238658,93.273,93.216,28.53267226]
[1772656381691,1.54238658,93.273,93.22,0.20183419]
[1772656383792,1.54238658,93.271,93.22,0.20183419]
[1772656383997,1.54238658,93.265,93.207,0.21172459]
[1772656384198,1.54238658,93.265,93.208,0.21172459]
[1772656385305,0.28432314,93.262,93.208,0.21172459]
[1772656385508,1.54238658,93.255,93.2,0.21782492]
[1772656386385,1.54238658,93.255,93.201,10.72949861]
[1772656386706,1.54238658,93.255,93.202,0.22169601]
[1772656388406,1.54238658,93.255,93.204,0.22927802]
[1772656388610,1.54238658,93.262,93.206,0.22927802]
[1772656388809,0.2,93.37,93.22,0.23298868]
[1772656388810,1.54238658,93.292,93.22,0.23298868]
[1772656389004,1.54238658,93.292,93.231,0.28432314]
[1772656389205,1.54238658,93.292,93.24,0.23298868]
[1772656390504,1.54238658,93.292,93.242,0.23664225]
[1772656390890,3.69383402,93.343,93.25,0.24025209]
[1772656391096,1.54238658,93.338,93.25,0.24025209]
[1772656391297,1.54238658,93.336,93.25,0.24025209]
[1772656391996,1.54238658,93.336,93.241,37.53713495]
[1772656391997,1.54238658,93.334,93.251,37.53310955]
[1772656392211,0.28432314,93.319,93.252,0.24384396]
[1772656392515,1.54238658,93.316,93.252,0.24384396]
[1772656394114,1.54238658,93.316,93.23,1.07261611]
[1772656394115,1.54238658,93.316,93.254,0.25300612]
[1772656397924,1.54238658,93.316,93.255,10.72328561]
[1772656398115,1.54238658,93.316,93.256,0.26861917]
[1772656399638,1.54238658,93.304,93.234,0.2750835]
[1772656399834,1.54238658,93.296,93.234,0.2750835]
[1772656400036,1.54238658,93.296,93.237,0.27825281]
[1772656402124,1.54238658,93.296,93.239,0.28447864]
[1772656403722,1.54238658,93.286,93.215,0.28752889]
[1772656403929,1.54238658,93.276,93.215,0.28752889]
[1772656404920,1.54238658,93.276,93.216,0.29569483]
[1772656406829,1.54238658,93.276,93.217,10.72765697]
[1772656407032,1.54238658,93.276,93.206,0.30651039]
[1772656409330,1.54238658,93.276,93.208,0.31209044]
[1772656410730,1.54238658,93.276,93.207,10.72880792]
[1772656410731,1.54238658,93.276,93.21,0.3127779]
[1772656412332,1.54238658,93.276,93.22,0.31616583]
[1772656413839,1.62447616,93.294,93.224,3.69383402]
[1772656414022,1.62447616,93.307,93.246,0.32151269]
[1772656414339,1.62447616,93.307,93.262,0.32151269]
[1772656416337,1.9087993,93.355,93.262,0.32151269]
[1772656416523,1.62447616,93.355,93.266,0.32671328]
[1772656416844,1.62447616,93.355,93.27,0.32671328]
[1772656417134,1.62447616,93.337,93.27,0.32671328]
[1772656417325,1.62447616,93.335,93.27,0.32671328]
[1772656419042,1.62447616,93.335,93.272,0.33429299]
[1772656419638,1.62447616,93.335,93.28,0.33429299]
[1772656420040,1.62447616,93.335,93.288,0.33674186]
[1772656420245,1.62447616,93.335,93.29,0.33674186]
[1772656420841,1.62447616,93.335,93.292,0.33711751]
[1772656424045,1.62447616,93.335,93.294,0.3416147]
[1772656426432,1.62447616,93.335,93.296,0.34315312]
[1772656428837,1.62447616,93.335,93.294,0.6457]
[1772656429550,1.62447616,93.335,93.294,0.99185817]
[1772656430044,1.62447616,93.335,93.294,0.6457]
[1772656431944,1.62447616,93.335,93.295,10.71868803]
[1772656432448,1.62447616,93.335,93.294,0.6457]
[1772656433751,1.62447616,93.335,93.295,0.34976895]
[1772656437469,1.62447616,93.335,93.252,28.4]
[1772656437470,1.60555205,93.333,93.25,38.09623265]
[1772656437750,0.2,93.37,93.159,1.61473883]
[1772656437751,1.60555205,93.207,93.159,1.61473883]
[1772656438539,1.60555205,93.207,93.16,1.61473883]
[1772656439042,5.594,93.216,93.162,1.61473883]
[1772656439237,5.594,93.216,93.175,0.28432314]
[1772656439440,5.594,93.216,93.184,1.61473883]
[1772656439648,5.594,93.216,93.19,1.61473883]
[1772656440555,1.60555205,93.215,93.167,1.61473883]
[1772656440746,1.60555205,93.215,93.17,1.61473883]
[1772656441547,1.60555205,93.215,93.172,1.61473883]
[1772656442653,2.67461872,93.216,93.188,0.02981066]
[1772656442856,2.64713982,93.216,93.188,0.02981066]
[1772656443858,1.73975848,93.231,93.188,0.02981066]
[1772656447388,1.73975848,93.231,93.163,0.05339532]
[1772656450637,1.73975848,93.269,93.17,0.08522245]
[1772656450838,1.73975848,93.269,93.168,3.69383402]
[1772656450839,1.73975848,93.265,93.18,0.09471327]
[1772656451046,1.73975848,93.265,93.187,0.09471327]
[1772656451772,1.73975848,93.265,93.181,1.07318015]
[1772656451773,1.73975848,93.265,93.191,0.09471327]
[1772656452055,1.73975848,93.265,93.197,0.10670721]
[1772656456169,1.73975848,93.265,93.199,0.14069561]
[1772656456463,1.73975848,93.274,93.21,0.14069561]
[1772656456763,1.73975848,93.274,93.221,0.14069561]
[1772656457169,1.73975848,93.318,93.221,0.14069561]
[1772656457376,1.73975848,93.318,93.216,262.83041535]
[1772656457377,1.73975848,93.318,93.233,0.28432314]
[1772656457570,1.0721561,93.369,93.29,1.61473883]
[1772656457950,0.28432314,93.368,93.29,1.61473883]
[1772656458267,1.0721561,93.367,93.3,1.61473883]
[1772656458458,0.28432314,93.366,93.3,1.61473883]
[1772656458658,1.0721561,93.365,93.3,1.61473883]
[1772656459054,0.2,93.37,93.31,1.68605418]
[1772656459582,1.72690973,93.369,93.31,1.68605418]
[1772656460369,1.72690973,93.369,93.312,1.68605418]
[1772656460569,1.72690973,93.369,93.315,0.28432314]
[1772656460749,1.72690973,93.369,93.321,0.14216157]
[1772656460950,1.72690973,93.369,93.33,1.68605418]
[1772656461364,1.72690973,93.369,93.321,1.68605418]
[1772656461560,1.72690973,93.369,93.323,1.68605418]
[1772656461766,0.2,93.37,93.329,1.68605418]
[1772656462678,0.2,93.37,93.331,1.68605418]
[1772656463252,0.2,93.37,93.339,1.68605418]
[1772656463654,1.72690973,93.398,93.346,1.68605418]
[1772656463854,1.72690973,93.398,93.36,1.68605418]
[1772656464253,1.72690973,93.419,93.376,1.68605418]
[1772656464465,1.72690973,93.419,93.382,1.68605418]
[1772656466752,1.72690973,93.419,93.383,10.70858721]
[1772656468362,1.79458762,93.417,93.374,0.3279655]
[1772656468563,1.79458762,93.405,93.337,1.70849565]
[1772656468766,1.79458762,93.403,93.338,10.71375002]
[1772656468982,1.79458762,93.401,93.339,1.70849565]
[1772656469177,1.79458762,93.399,93.339,1.70849565]
[1772656471088,1.79458762,93.399,93.341,1.70849565]
[1772656471881,1.79458762,93.399,93.341,1.98392643]
[1772656472662,1.79458762,93.399,93.342,10.7132909]
[1772656472864,1.79458762,93.399,93.343,1.70849565]
[1772656473060,1.79458762,93.399,93.342,37.49651817]
[1772656473061,1.79458762,93.418,93.362,0.28432314]
[1772656473266,0.2,93.43,93.376,0.28432314]
[1772656473578,0.2,93.44,93.394,0.28432314]
[1772656473769,1.79458762,93.459,93.396,1.95418385]
[1772656473969,1.79458762,93.459,93.399,1.67883171]
[1772656474566,1.79458762,93.459,93.408,1.67883171]
[1772656474769,1.79458762,93.459,93.412,1.67883171]
[1772656474986,1.79458762,93.459,93.411,37.46882058]
[1772656474987,1.79458762,93.459,93.414,1.68770075]
[1772656475183,1.79458762,93.469,93.42,1.68770075]
[1772656476381,1.79458762,93.469,93.421,10.70423138]
[1772656476576,1.79458762,93.469,93.421,12.40070005]
[1772656476788,1.79458762,93.479,93.43,1.37018091]
[1772656477490,1.79458762,93.477,93.415,10.70485577]
[1772656477691,1.79458762,93.465,93.402,10.70640885]
[1772656477986,1.0721561,93.476,93.402,10.70640885]
[1772656477987,1.79458762,93.463,93.402,10.70640885]
[1772656478186,0.28432314,93.456,93.402,10.70640885]
[1772656478390,1.79458762,93.446,93.382,1.37903476]
[1772656478589,1.79458762,93.438,93.374,1.37903476]
[1772656478795,1.79458762,93.436,93.373,26.77420078]
[1772656479007,1.79458762,93.434,93.373,26.77420078]
[1772656479294,1.79458762,93.434,93.368,10.7103076]
[1772656479587,1.79458762,93.426,93.368,37.4860766]
[1772656480494,1.79458762,93.426,93.37,10.71007818]
[1772656480695,1.79458762,93.426,93.37,10.98377429]
[1772656482596,1.79458762,93.416,93.37,0.27369611]
[1772656482982,1.79458762,93.416,93.346,1.69986511]
[1772656483177,1.79458762,93.406,93.341,10.71340568]
[1772656484281,1.79458762,93.406,93.342,1.42331406]
[1772656485400,1.79458762,93.402,93.336,0.20750735]
[1772656485584,1.79458762,93.386,93.32,12.14680929]
[1772656485781,1.79458762,93.376,93.314,10.71639411]
[1772656485981,1.79458762,93.366,93.314,10.71639411]
[1772656487684,1.79458762,93.366,93.311,0.17707378]
[1772656488197,1.79458762,93.366,93.312,10.71673525]
[1772656491095,1.79458762,93.366,93.313,1.4824894]
[1772656492480,1.79458762,93.366,93.314,12.20343644]
[1772656492977,1.79458762,93.366,93.314,10.71650556]
[1772656493378,1.79458762,93.366,93.311,0.17707378]
[1772656493684,1.79458762,93.366,93.312,10.71673525]
[1772656494302,1.81391221,93.356,93.311,0.17707378]
[1772656494711,1.81391221,93.356,93.312,10.71673525]
[1772656494888,1.81391221,93.356,93.311,0.17707378]
[1772656495385,1.81391221,93.356,93.312,10.71673525]
[1772656496883,1.81391221,93.356,93.311,0.17707378]
[1772656497287,1.81391221,93.356,93.312,10.71673525]
[1772656497900,1.81391221,93.356,93.313,1.53026953]
[1772656498089,1.81391221,93.395,93.319,1.53026953]
[1772656498401,1.81391221,93.395,93.337,1.53026953]
[1772656498584,1.81391221,93.43,93.351,1.53026953]
[1772656498785,1.81391221,93.43,93.359,1.53026953]
[1772656499605,1.81391221,93.426,93.359,1.53026953]
[1772656499922,1.81391221,93.424,93.359,1.53026953]
[1772656500605,1.81391221,93.406,93.351,37.49290312]
[1772656500907,1.81391221,93.404,93.352,1.54946857]
[1772656501304,1.81391221,93.404,93.351,37.49290312]
[1772656502306,1.81391221,93.45,93.352,1.5531295]
[1772656502502,0.14216157,93.435,93.36,1.5531295]
[1772656502681,1.81391221,93.426,93.362,1.5531295]
[1772656502886,1.81391221,93.416,93.362,1.5531295]
[1772656503505,1.81391221,93.456,93.38,1.55932161]
[1772656503802,1.81391221,93.454,93.392,1.56544234]
[1772656504792,1.81391221,93.454,93.394,1.57417377]
[1772656505706,1.95607378,93.479,93.394,1.57417377]
[1772656505904,1.81391221,93.472,93.4,1.58008952]
[1772656506105,1.81391221,93.47,93.4,1.58008952]
[1772656506408,1.81391221,93.468,93.4,1.58008952]
[1772656506603,1.81391221,93.466,93.4,1.58008952]
[1772656506998,1.81391221,93.466,93.401,133.83154354]
[1772656507303,1.81391221,93.466,93.402,1.58594399]
[1772656507495,1.81391221,93.458,93.402,1.58594399]
[1772656509417,1.81391221,93.456,93.403,37.4720298]
[1772656509597,0.1,93.48,93.403,37.4720298]
[1772656509598,1.81391221,93.448,93.403,37.4720298]
[1772656510605,1.81391221,93.448,93.404,1.60313179]
[1772656511202,2.09823535,93.479,93.404,1.60313179]
[1772656511499,1.81391221,93.472,93.404,1.60313179]
[1772656511807,1.81391221,93.468,93.406,1.6061419]
[1772656514803,1.81391221,93.468,93.408,1.62260751]
[1772656515111,1.81391221,93.468,93.412,1.62796897]
[1772656515301,1.81391221,93.479,93.422,1.62796897]
[1772656517319,1.81391221,93.479,93.424,1.63849515]
[1772656518318,1.81391221,93.479,93.426,1.64108587]
[1772656520312,1.81391221,93.479,93.428,1.65636934]
[1772656521299,1.81391221,93.479,93.428,1.83474912]
[1772656522312,1.81391221,93.479,93.43,1.66626022]
[1772656523705,1.0721561,93.516,93.433,1.96792572]
[1772656523906,4.82477569,93.518,93.43,1.96792572]
[1772656524106,5.10909883,93.515,93.43,1.96792572]
[1772656524415,0.28432314,93.51,93.432,1.96792572]
[1772656524614,0.28432314,93.508,93.432,1.96792572]
[1772656524801,4.82477569,93.511,93.432,1.96792572]
[1772656524802,0.28432314,93.506,93.432,1.96792572]
[1772656525001,0.28432314,93.504,93.432,1.96792572]
[1772656525204,0.28432314,93.502,93.432,1.96792572]
[1772656525403,0.28432314,93.5,93.432,1.96792572]
[1772656525602,0.28432314,93.498,93.432,1.96792572]
[1772656525800,0.28432314,93.484,93.432,1.96792572]
[1772656525996,1.89511027,93.479,93.432,1.96792572]
[1772656526416,1.89511027,93.479,93.434,1.88016942]
[1772656526718,1.94435021,93.506,93.434,1.88016942]
[1772656526920,1.94435021,93.502,93.434,1.88016942]
[1772656527220,3.69383402,93.517,93.434,1.88016942]
[1772656527221,1.94435021,93.488,93.434,1.88016942]
[1772656528005,1.94435021,93.513,93.435,0.28432314]
[1772656528314,59.12107453,93.671,93.443,37.4559892]
[1772656528315,1.94435021,93.509,93.443,37.4559892]
[1772656528620,1.94435021,93.507,93.444,1.88016942]
[1772656528803,1.94435021,93.505,93.444,1.88016942]
[1772656530505,1.94435021,93.503,93.446,1.88016942]
[1772656530707,3.69383402,93.517,93.445,10.70148215]
[1772656530708,1.94435021,93.489,93.445,10.70148215]
[1772656530913,1.94435021,93.487,93.445,10.70148215]
[1772656531110,1.94435021,93.487,93.445,37.45518753]
[1772656531325,1.94435021,93.487,93.445,39.33535695]
[1772656533430,1.94435021,93.487,93.446,1.88016942]
[1772656535818,1.94435021,93.487,93.447,37.4543859]
[1772656536130,1.94435021,93.487,93.448,1.88016942]
[1772656538920,1.94435021,93.487,93.45,1.88016942]
[1772656541016,1.94435021,93.487,93.452,1.88016942]
[1772656543143,1.94435021,93.487,93.454,1.88016942]
[1772656546137,1.94435021,93.487,93.455,10.70033706]
[1772656546632,1.94435021,93.487,93.455,12.58050648]
[1772656547236,1.94435021,93.487,93.455,1.88016942]
[1772656547939,1.94435021,93.487,93.455,12.58050648]
[1772656549038,1.94435021,93.487,93.456,2.12593665]
[1772656549221,1.94435021,93.487,93.453,26.75141514]
[1772656549421,1.94435021,93.487,93.454,2.12593665]
[1772656550343,1.94435021,93.487,93.429,3.69383402]
[1772656550344,2.12756155,93.471,93.42,12.83028261]
[1772656550542,2.12756155,93.459,93.42,10.70434596]
[1772656551241,2.12756155,93.459,93.42,28.88680156]
[1772656551432,2.12756155,93.459,93.421,2.12593665]
[1772656553237,2.12756155,93.459,93.414,10.7050335]
[1772656553238,2.12756155,93.459,93.423,2.12593665]
[1772656554229,1.0721561,93.494,93.423,2.12593665]
[1772656554421,2.26972312,93.493,93.423,2.12593665]
[1772656554621,2.26972312,93.491,93.423,2.12593665]
[1772656554932,2.12756155,93.478,93.423,2.12593665]
[1772656555135,3.69383402,93.515,93.423,2.12593665]
[1772656555136,2.41188469,93.513,93.423,2.12593665]
[1772656555328,2.12756155,93.511,93.428,2.12593665]
[1772656555523,2.12756155,93.509,93.428,2.12593665]
[1772656555724,2.12756155,93.499,93.428,2.12593665]
[1772656555921,2.12756155,93.489,93.428,2.12593665]
[1772656556121,2.12756155,93.515,93.432,2.12593665]
[1772656556339,2.41188469,93.499,93.432,2.12593665]
[1772656556522,2.12756155,93.499,93.432,2.12593665]
[1772656557640,2.12756155,93.499,93.434,2.12593665]
[1772656557841,2.12756155,93.485,93.434,2.12593665]
[1772656558041,2.12756155,93.469,93.429,10.70330399]
[1772656558250,2.12756155,93.469,93.43,2.12593665]
[1772656560659,2.12756155,93.469,93.432,2.12593665]
[1772656561935,2.12756155,93.469,93.419,10.70446054]
[1772656563037,2.41188469,93.467,93.419,10.70446054]
[1772656563232,2.41188469,93.467,93.409,10.70560652]
[1772656563438,2.41188469,93.467,93.397,26.76725977]
[1772656563757,2.41188469,93.465,93.407,10.70583575]
[1772656564632,2.12756155,93.448,93.407,10.70583575]
[1772656564838,2.12756155,93.438,93.397,26.76725977]
[1772656565846,2.12756155,93.438,93.399,2.12593665]
[1772656566046,2.12756155,93.438,93.406,2.23890129]
[1772656568164,2.12756155,93.438,93.407,10.70583575]
[1772656568364,2.41188469,93.473,93.408,2.12593665]
[1772656568666,0.28432314,93.449,93.408,2.12593665]
[1772656568860,2.12756155,93.448,93.408,2.12593665]
[1772656569964,2.12756155,93.444,93.408,2.12593665]
[1772656570145,2.12756155,93.438,93.406,0.11296464]
[1772656570951,2.12756155,93.438,93.406,2.23890129]
[1772656571555,2.41188469,93.473,93.406,2.23890129]
[1772656571749,2.41188469,93.471,93.406,2.23890129]
[1772656571947,0.14216157,93.463,93.406,2.23890129]
[1772656572152,2.12756155,93.448,93.406,2.23890129]
[1772656572354,2.12756155,93.448,93.408,2.12593665]
[1772656572967,2.41188469,93.473,93.408,2.12593665]
[1772656573147,2.12756155,93.471,93.408,2.12593665]
[1772656573349,2.12756155,93.469,93.408,2.12593665]
[1772656574466,2.12756155,93.467,93.41,2.12593665]
[1772656574989,2.12756155,93.476,93.414,2.41025979]
[1772656575465,1.0721561,93.511,93.409,176.64250766]
[1772656575466,1.0721561,93.511,93.419,2.41025979]
[1772656575648,1.0721561,93.511,93.434,0.28432314]
[1772656575850,1.0721561,93.548,93.444,0.28432314]
[1772656576082,1.0721561,93.548,93.453,2.12593665]
[1772656576286,4.82477569,93.544,93.453,2.12593665]
[1772656576453,4.82477569,93.544,93.413,1.07051481]
[1772656576454,1.0721561,93.543,93.455,2.12593665]
[1772656576773,0.28432314,93.542,93.455,2.12593665]
[1772656577078,4.32477569,93.54,93.455,2.12593665]
[1772656577247,2.12756155,93.531,93.455,2.12593665]
[1772656577565,2.12756155,93.517,93.455,2.12593665]
[1772656577763,0.28432314,93.509,93.455,2.12593665]
[1772656578748,0.28432314,93.509,93.457,2.04890043]
[1772656579566,2.27331043,93.528,93.457,2.04890043]
[1772656579759,1.98898729,93.521,93.457,2.04890043]
[1772656579965,1.98898729,93.519,93.457,2.04890043]
[1772656580273,1.98898729,93.517,93.457,2.04890043]
[1772656581072,1.98898729,93.517,93.459,2.04890043]
[1772656581853,0.28432314,93.512,93.459,2.04890043]
[1772656582059,1.98898729,93.509,93.459,2.04890043]
[1772656582254,1.98898729,93.525,93.462,2.04890043]
[1772656582464,104.9,93.545,93.464,2.04890043]
[1772656582465,2.27331043,93.544,93.464,2.04890043]
[1772656582665,2.27331043,93.544,93.458,177.61989342]
[1772656582666,2.27331043,93.544,93.466,2.04890043]
[1772656582873,2.27331043,93.544,93.468,2.04890043]
[1772656583066,2.27331043,93.544,93.47,2.04890043]
[1772656583262,2.27331043,93.544,93.472,2.04890043]
[1772656583466,2.27331043,93.544,93.474,2.04890043]
[1772656583668,2.27331043,93.544,93.476,2.04890043]
[1772656583864,0.28432314,93.525,93.476,2.04890043]
[1772656584067,1.98898729,93.508,93.476,2.04890043]
[1772656584276,2.27331043,93.537,93.476,2.04890043]
[1772656585478,2.27331043,93.537,93.478,2.04890043]
[1772656587375,2.27331043,93.537,93.478,2.16177806]
[1772656588075,2.27331043,93.537,93.479,37.44156441]
[1772656588266,2.26579039,93.55,93.48,2.0119908]
[1772656588461,2.26579039,93.55,93.482,2.0119908]
[1772656588686,0.2,93.55,93.484,2.0119908]
[1772656588990,2.06579039,93.549,93.486,2.0119908]
[1772656589292,2.06579039,93.549,93.488,2.0119908]
[1772656589471,2.06579039,93.549,93.49,2.0119908]
[1772656590161,0.28432314,93.549,93.492,2.0119908]
[1772656590498,0.14216157,93.549,93.492,2.0119908]
[1772656590672,0.28432314,93.549,93.492,2.0119908]
[1772656590873,0.2,93.55,93.492,2.0119908]
[1772656592382,0.2,93.55,93.494,2.0119908]
[1772656592565,0.2,93.55,93.493,37.43595776]
[1772656592762,2.06579039,93.549,93.493,37.43595776]
[1772656594466,2.06579039,93.549,93.496,2.0119908]
[1772656596084,2.06579039,93.549,93.498,2.0119908]
[1772656598377,2.06579039,93.549,93.5,2.0119908]
[1772656600386,0.2,93.55,93.502,2.0119908]
[1772656600584,2.06579039,93.548,93.502,2.0119908]
[1772656602568,2.06579039,93.548,93.504,2.0119908]
[1772656602982,2.06579039,93.548,93.503,37.43195404]
[1772656602983,2.06579039,93.538,93.503,10.69484401]
[1772656603784,2.06579039,93.538,93.504,2.0119908]
[1772656604282,2.06579039,93.538,93.503,37.43195404]
[1772656604885,2.06579039,93.538,93.503,26.73711003]
[1772656605769,2.06579039,93.538,93.497,10.69553033]
[1772656606162,2.06579039,93.538,93.497,12.70752113]
[1772656609486,0.2,93.55,93.497,12.70752113]
[1772656609487,2.15087721,93.536,93.497,12.70752113]
[1772656609692,2.15087721,93.528,93.497,10.69553033]
[1772656610078,2.15087721,93.528,93.492,26.74010623]
[1772656610699,2.15087721,93.528,93.493,2.16916964]
[1772656611392,2.15087721,93.528,93.494,10.69587353]
[1772656611588,2.15087721,93.528,93.495,2.16916964]
[1772656611791,2.43520035,93.549,93.495,2.16916964]
[1772656613992,2.43520035,93.549,93.48,42.78986085]
[1772656613993,0.2,93.55,93.497,2.16916964]
[1772656614991,2.35087721,93.55,93.497,2.16916964]
[1772656615595,1e-08,93.55,93.536,2.16916964]
[1772656615989,1e-08,93.55,93.538,2.16916964]
[1772656617200,10.97290202,93.59,93.539,2.16916964]
[1772656617397,2.15087721,93.609,93.543,2.16916964]
[1772656617998,2.15087721,93.609,93.545,2.16916964]
[1772656619285,0.31313153,93.622,93.548,2.45349278]
[1772656620109,0.31313153,93.622,93.561,0.28432314]
[1772656620310,0.31313153,93.622,93.572,2.16916964]
[1772656620688,0.14216157,93.621,93.572,2.16916964]
[1772656620908,0.28432314,93.621,93.572,2.16916964]
[1772656621284,2.15087721,93.618,93.572,2.16916964]
[1772656622613,2.15087721,93.618,93.553,3.69383402]
[1772656622614,2.15087721,93.608,93.573,37.40395198]
[1772656622988,2.15087721,93.608,93.573,39.57312162]
[1772656623423,0.28432314,93.591,93.523,2.16916964]
[1772656623589,3.69383402,93.603,93.523,2.16916964]
[1772656623590,2.15087721,93.57,93.523,2.16916964]
[1772656623907,2.15087721,93.568,93.523,2.16916964]
[1772656624791,2.15087721,93.568,93.467,47.62046463]
[1772656624792,2.15087721,93.568,93.525,2.16916964]
[1772656624996,2.43520035,93.597,93.525,2.16916964]
[1772656625306,2.43520035,93.597,93.524,37.42354903]
[1772656625503,2.15087721,93.578,93.524,10.69244258]
[1772656625803,2.15087721,93.548,93.513,10.69370034]
[1772656626101,2.15087721,93.548,93.467,42.79568894]
[1772656626102,0.28432314,93.543,93.506,10.69446929]
[1772656626306,3.69383402,93.575,93.524,0.6414]
[1772656626307,2.15087721,93.528,93.524,0.6414]
[1772656626485,2.15087721,93.528,93.492,2.16916964]
[1772656626902,2.15087721,93.522,93.458,2.16916964]
[1772656627106,3.69383402,93.556,93.458,2.16916964]
[1772656627107,2.15087721,93.518,93.458,2.16916964]
[1772656627317,2.15087721,93.504,93.458,2.16916964]
[1772656627613,0.14216157,93.477,93.422,2.16916964]
[1772656627793,2.15087721,93.458,93.424,2.16916964]
[1772656627999,2.43520035,93.495,93.424,2.16916964]
[1772656628996,4.82477569,93.494,93.426,2.16916964]
[1772656629308,4.82477569,93.494,93.385,42.83328805]
[1772656629309,2.15087721,93.458,93.389,2.16916964]
[1772656629521,2.15087721,93.458,93.393,2.16916964]
[1772656630507,0.28432314,93.47,93.403,2.16916964]
[1772656630707,2.15087721,93.469,93.403,2.16916964]
[1772656630904,2.15087721,93.469,93.405,2.16916964]
[1772656631314,0.28432314,93.464,93.405,2.16916964]
[1772656631493,0.28432314,93.45,93.405,2.16916964]
[1772656631694,2.15087721,93.449,93.405,2.16916964]
[1772656632013,2.15087721,93.449,93.404,37.47162861]
[1772656632191,2.15087721,93.449,93.404,39.64079825]
[1772656633830,2.15087721,93.449,93.365,42.84226472]
[1772656633831,2.15087721,93.449,93.399,10.70670706]
[1772656634893,2.15087721,93.449,93.4,2.16916964]
[1772656636520,2.15087721,93.449,93.402,2.16916964]
[1772656638604,2.15087721,93.449,93.404,2.2029114]
[1772656640016,2.15087721,93.449,93.405,10.70606498]
[1772656640319,2.15087721,93.449,93.406,2.2029114]
[1772656641020,2.31983752,93.525,93.406,2.2029114]
[1772656641320,4.82477569,93.508,93.406,2.2029114]
[1772656641617,2.31983752,93.496,93.406,2.2029114]
[1772656641816,2.31983752,93.486,93.406,2.2029114]
[1772656642026,2.31983752,93.478,93.406,2.2029114]
[1772656642201,0.28432314,93.477,93.408,2.2029114]
[1772656642401,2.31983752,93.458,93.408,2.2029114]
[1772656645124,2.31983752,93.458,93.409,37.46962283]
[1772656645436,2.31983752,93.458,93.41,2.2029114]
[1772656646319,0.28432314,93.451,93.41,2.2029114]
[1772656646501,0.28432314,93.433,93.404,10.70610032]